{"text_format":"3","workbook":"xlsx","n_sheets":4,"sheets":["Обобщение на бюджета","Обобщение на месечните разходи","Изброени разходи","Разходи за благотворителност и "],"not_rendered":{"defined_names":8,"comments":2},"read":"whole","date_system":"1900"}

{"sheet":"Обобщение на бюджета","index":0,"n_rows":30,"n_cols":6,"rows_kept":30,"merged":[[1,0,1,5]]}
[]
["Актуален бюджет 2005 и бюджет YTD"]
[]
["Код в сч. книга","Наименование на сметка","Действителна","Бюджет","Остатък лв","Остатък лв"]
[]
[1000,"Реклама",{"$f":"'Обобщение на месечните разходи'!O6","v":{"v":9009,"d":"9,009.00 лв"}},{"v":100000,"d":"100,000.00 лв"},{"$f":"SUM(+D6-C6)","v":{"v":90991,"d":"90,991.00 лв"}},{"$f":"SUM(E6/D6)","v":{"v":0.90991,"d":"90.99%"}}]
[]
[2000,"Офис оборудване",{"$f":"'Обобщение на месечните разходи'!O8","v":{"v":0,"d":"0.00 лв"}},{"v":100000,"d":"100,000.00 лв"},{"$f":"SUM(+D8-C8)","v":{"v":100000,"d":"100,000.00 лв"}},{"$f":"SUM(E8/D8)","v":{"v":1,"d":"100.00%"}}]
[]
[3000,"Принтери",{"$f":"'Обобщение на месечните разходи'!O10","v":{"v":0,"d":"0.00 лв"}},{"v":100000,"d":"100,000.00 лв"},{"$f":"SUM(+D10-C10)","v":{"v":100000,"d":"100,000.00 лв"}},{"$f":"SUM(E10/D10)","v":{"v":1,"d":"100.00%"}}]
[]
[4000,"Разходи по сървъри",{"$f":"'Обобщение на месечните разходи'!O12","v":{"v":0,"d":"0.00 лв"}},{"v":100000,"d":"100,000.00 лв"},{"$f":"SUM(+D12-C12)","v":{"v":100000,"d":"100,000.00 лв"}},{"$f":"SUM(E12/D12)","v":{"v":1,"d":"100.00%"}}]
[]
[5000,"Материали",{"$f":"'Обобщение на месечните разходи'!O14","v":{"v":0,"d":"0.00 лв"}},{"v":50000,"d":"50,000.00 лв"},{"$f":"SUM(+D14-C14)","v":{"v":50000,"d":"50,000.00 лв"}},{"$f":"SUM(E14/D14)","v":{"v":1,"d":"100.00%"}}]
[]
[6000,"Разходи по клиенти",{"$f":"'Обобщение на месечните разходи'!O16","v":{"v":0,"d":"0.00 лв"}},{"v":25000,"d":"25,000.00 лв"},{"$f":"SUM(+D16-C16)","v":{"v":25000,"d":"25,000.00 лв"}},{"$f":"SUM(E16/D16)","v":{"v":1,"d":"100.00%"}}]
[]
[7000,"Компютри",{"$f":"'Обобщение на месечните разходи'!O18","v":{"v":30000,"d":"30,000.00 лв"}},{"v":75000,"d":"75,000.00 лв"},{"$f":"SUM(+D18-C18)","v":{"v":45000,"d":"45,000.00 лв"}},{"$f":"SUM(E18/D18)","v":{"v":0.6,"d":"60.00%"}}]
[]
[8000,"Медицински план",{"$f":"'Обобщение на месечните разходи'!O20","v":{"v":0,"d":"0.00 лв"}},{"v":65000,"d":"65,000.00 лв"},{"$f":"SUM(+D20-C20)","v":{"v":65000,"d":"65,000.00 лв"}},{"$f":"SUM(E20/D20)","v":{"v":1,"d":"100.00%"}}]
[]
[9000,"Строителни разходи",{"$f":"'Обобщение на месечните разходи'!O22","v":{"v":0,"d":"0.00 лв"}},{"v":125000,"d":"125,000.00 лв"},{"$f":"SUM(+D22-C22)","v":{"v":125000,"d":"125,000.00 лв"}},{"$f":"SUM(E22/D22)","v":{"v":1,"d":"100.00%"}}]
[]
[10000,"Маркетинг",{"$f":"'Обобщение на месечните разходи'!O24","v":{"v":0,"d":"0.00 лв"}},{"v":100000,"d":"100,000.00 лв"},{"$f":"SUM(+D24-C24)","v":{"v":100000,"d":"100,000.00 лв"}},{"$f":"SUM(E24/D24)","v":{"v":1,"d":"100.00%"}}]
[]
[11000,"Разходи за благотворителност",{"$f":"'Обобщение на месечните разходи'!O26","v":{"v":30000,"d":"30,000.00 лв"}},{"v":250000,"d":"250,000.00 лв"},{"$f":"SUM(+D26-C26)","v":{"v":220000,"d":"220,000.00 лв"}},{"$f":"SUM(E26/D26)","v":{"v":0.88,"d":"88.00%"}}]
[]
[12000,"Спонсорство",{"$f":"'Обобщение на месечните разходи'!O28","v":{"v":12000,"d":"12,000.00 лв"}},{"v":50000,"d":"50,000.00 лв"},{"$f":"SUM(+D28-C28)","v":{"v":38000,"d":"38,000.00 лв"}},{"$f":"SUM(E28/D28)","v":{"v":0.76,"d":"76.00%"}}]
[]
[null,"ВСИЧКО",{"$f":"SUM(C6:C28)","v":{"v":81009,"d":"81,009.00 лв"}},{"$f":"SUM(D6:D28)","v":{"v":1140000,"d":"1,140,000.00 лв"}},{"$f":"SUM(E6:E28)","v":{"v":1058991,"d":"1,058,991.00 лв"}},{"$f":"SUM(E30/D30)","v":{"v":0.9289394736842105,"d":"92.89%"}}]

{"sheet":"Обобщение на месечните разходи","index":1,"n_rows":30,"n_cols":15,"rows_kept":30,"merged":[[1,0,1,14]]}
[]
["Месечни разходи за 2005"]
[]
["Код в сч. книга","Наименование на сметка","2005-01-01","2005-02-01","2005-03-01","2005-04-01","2005-05-01","2005-06-01","2005-07-01","2005-08-01","2005-09-01","2005-10-01","2005-11-01","2005-12-01",2005]
[]
[1000,"Реклама",{"$f":"SUMIF('Разходи за благотворителност и '!$L:$L,\"=\"&($A6&TEXT(C$4,\"ммм-гг\")),'Разходи за благотворителност и '!$D:$D)+SUMIF('Изброени разходи'!$J:$J,\"=\"&($A6&TEXT(C$4,\"ммм-гг\")),'Изброени разходи'!$E:$E)","v":{"v":750.75,"d":"750.75 лв"}},{"$f":"SUMIF('Разходи за благотворителност и '!$L:$L,\"=\"&($A6&TEXT(D$4,\"ммм-гг\")),'Разходи за благотворителност и '!$D:$D)+SUMIF('Изброени разходи'!$J:$J,\"=\"&($A6&TEXT(D$4,\"ммм-гг\")),'Изброени разходи'!$E:$E)","v":{"v":750.75,"d":"750.75 лв"}},{"$f":"SUMIF('Разходи за благотворителност и '!$L:$L,\"=\"&($A6&TEXT(E$4,\"ммм-гг\")),'Разходи за благотворителност и '!$D:$D)+SUMIF('Изброени разходи'!$J:$J,\"=\"&($A6&TEXT(E$4,\"ммм-гг\")),'Изброени разходи'!$E:$E)","v":{"v":750.75,"d":"750.75 лв"}},{"$f":"SUMIF('Разходи за благотворителност и '!$L:$L,\"=\"&($A6&TEXT(F$4,\"ммм-гг\")),'Разходи за благотворителност и '!$D:$D)+SUMIF('Изброени разходи'!$J:$J,\"=\"&($A6&TEXT(F$4,\"ммм-гг\")),'Изброени разходи'!$E:$E)","v":{"v":750.75,"d":"750.75 лв"}},{"$f":"SUMIF('Разходи за благотворителност и '!$L:$L,\"=\"&($A6&TEXT(G$4,\"ммм-гг\")),'Разходи за благотворителност и '!$D:$D)+SUMIF('Изброени разходи'!$J:$J,\"=\"&($A6&TEXT(G$4,\"ммм-гг\")),'Изброени разходи'!$E:$E)","v":{"v":750.75,"d":"750.75 лв"}},{"$f":"SUMIF('Разходи за благотворителност и '!$L:$L,\"=\"&($A6&TEXT(H$4,\"ммм-гг\")),'Разходи за благотворителност и '!$D:$D)+SUMIF('Изброени разходи'!$J:$J,\"=\"&($A6&TEXT(H$4,\"ммм-гг\")),'Изброени разходи'!$E:$E)","v":{"v":750.75,"d":"750.75 лв"}},{"$f":"SUMIF('Разходи за благотворителност и '!$L:$L,\"=\"&($A6&TEXT(I$4,\"ммм-гг\")),'Разходи за благотворителност и '!$D:$D)+SUMIF('Изброени разходи'!$J:$J,\"=\"&($A6&TEXT(I$4,\"ммм-гг\")),'Изброени разходи'!$E:$E)","v":{"v":750.75,"d":"750.75 лв"}},{"$f":"SUMIF('Разходи за благотворителност и '!$L:$L,\"=\"&($A6&TEXT(J$4,\"ммм-гг\")),'Разходи за благотворителност и '!$D:$D)+SUMIF('Изброени разходи'!$J:$J,\"=\"&($A6&TEXT(J$4,\"ммм-гг\")),'Изброени разходи'!$E:$E)","v":{"v":750.75,"d":"750.75 лв"}},{"$f":"SUMIF('Разходи за благотворителност и '!$L:$L,\"=\"&($A6&TEXT(K$4,\"ммм-гг\")),'Разходи за благотворителност и '!$D:$D)+SUMIF('Изброени разходи'!$J:$J,\"=\"&($A6&TEXT(K$4,\"ммм-гг\")),'Изброени разходи'!$E:$E)","v":{"v":750.75,"d":"750.75 лв"}},{"$f":"SUMIF('Разходи за благотворителност и '!$L:$L,\"=\"&($A6&TEXT(L$4,\"ммм-гг\")),'Разходи за благотворителност и '!$D:$D)+SUMIF('Изброени разходи'!$J:$J,\"=\"&($A6&TEXT(L$4,\"ммм-гг\")),'Изброени разходи'!$E:$E)","v":{"v":750.75,"d":"750.75 лв"}},{"$f":"SUMIF('Разходи за благотворителност и '!$L:$L,\"=\"&($A6&TEXT(M$4,\"ммм-гг\")),'Разходи за благотворителност и '!$D:$D)+SUMIF('Изброени разходи'!$J:$J,\"=\"&($A6&TEXT(M$4,\"ммм-гг\")),'Изброени разходи'!$E:$E)","v":{"v":750.75,"d":"750.75 лв"}},{"$f":"SUMIF('Разходи за благотворителност и '!$L:$L,\"=\"&($A6&TEXT(N$4,\"ммм-гг\")),'Разходи за благотворителност и '!$D:$D)+SUMIF('Изброени разходи'!$J:$J,\"=\"&($A6&TEXT(N$4,\"ммм-гг\")),'Изброени разходи'!$E:$E)","v":{"v":750.75,"d":"750.75 лв"}},{"$f":"SUM(C6:N6)","v":{"v":9009,"d":"9,009.00 лв"}}]
[]
[2000,"Офис оборудване",{"$f":"SUMIF('Разходи за благотворителност и '!$L:$L,\"=\"&($A8&TEXT(C$4,\"ммм-гг\")),'Разходи за благотворителност и '!$D:$D)+SUMIF('Изброени разходи'!$J:$J,\"=\"&($A8&TEXT(C$4,\"ммм-гг\")),'Изброени разходи'!$E:$E)","v":0},{"$f":"SUMIF('Разходи за благотворителност и '!$L:$L,\"=\"&($A8&TEXT(D$4,\"ммм-гг\")),'Разходи за благотворителност и '!$D:$D)+SUMIF('Изброени разходи'!$J:$J,\"=\"&($A8&TEXT(D$4,\"ммм-гг\")),'Изброени разходи'!$E:$E)","v":0},{"$f":"SUMIF('Разходи за благотворителност и '!$L:$L,\"=\"&($A8&TEXT(E$4,\"ммм-гг\")),'Разходи за благотворителност и '!$D:$D)+SUMIF('Изброени разходи'!$J:$J,\"=\"&($A8&TEXT(E$4,\"ммм-гг\")),'Изброени разходи'!$E:$E)","v":0},{"$f":"SUMIF('Разходи за благотворителност и '!$L:$L,\"=\"&($A8&TEXT(F$4,\"ммм-гг\")),'Разходи за благотворителност и '!$D:$D)+SUMIF('Изброени разходи'!$J:$J,\"=\"&($A8&TEXT(F$4,\"ммм-гг\")),'Изброени разходи'!$E:$E)","v":0},{"$f":"SUMIF('Разходи за благотворителност и '!$L:$L,\"=\"&($A8&TEXT(G$4,\"ммм-гг\")),'Разходи за благотворителност и '!$D:$D)+SUMIF('Изброени разходи'!$J:$J,\"=\"&($A8&TEXT(G$4,\"ммм-гг\")),'Изброени разходи'!$E:$E)","v":0},{"$f":"SUMIF('Разходи за благотворителност и '!$L:$L,\"=\"&($A8&TEXT(H$4,\"ммм-гг\")),'Разходи за благотворителност и '!$D:$D)+SUMIF('Изброени разходи'!$J:$J,\"=\"&($A8&TEXT(H$4,\"ммм-гг\")),'Изброени разходи'!$E:$E)","v":0},{"$f":"SUMIF('Разходи за благотворителност и '!$L:$L,\"=\"&($A8&TEXT(I$4,\"ммм-гг\")),'Разходи за благотворителност и '!$D:$D)+SUMIF('Изброени разходи'!$J:$J,\"=\"&($A8&TEXT(I$4,\"ммм-гг\")),'Изброени разходи'!$E:$E)","v":0},{"$f":"SUMIF('Разходи за благотворителност и '!$L:$L,\"=\"&($A8&TEXT(J$4,\"ммм-гг\")),'Разходи за благотворителност и '!$D:$D)+SUMIF('Изброени разходи'!$J:$J,\"=\"&($A8&TEXT(J$4,\"ммм-гг\")),'Изброени разходи'!$E:$E)","v":0},{"$f":"SUMIF('Разходи за благотворителност и '!$L:$L,\"=\"&($A8&TEXT(K$4,\"ммм-гг\")),'Разходи за благотворителност и '!$D:$D)+SUMIF('Изброени разходи'!$J:$J,\"=\"&($A8&TEXT(K$4,\"ммм-гг\")),'Изброени разходи'!$E:$E)","v":0},{"$f":"SUMIF('Разходи за благотворителност и '!$L:$L,\"=\"&($A8&TEXT(L$4,\"ммм-гг\")),'Разходи за благотворителност и '!$D:$D)+SUMIF('Изброени разходи'!$J:$J,\"=\"&($A8&TEXT(L$4,\"ммм-гг\")),'Изброени разходи'!$E:$E)","v":0},{"$f":"SUMIF('Разходи за благотворителност и '!$L:$L,\"=\"&($A8&TEXT(M$4,\"ммм-гг\")),'Разходи за благотворителност и '!$D:$D)+SUMIF('Изброени разходи'!$J:$J,\"=\"&($A8&TEXT(M$4,\"ммм-гг\")),'Изброени разходи'!$E:$E)","v":0},{"$f":"SUMIF('Разходи за благотворителност и '!$L:$L,\"=\"&($A8&TEXT(N$4,\"ммм-гг\")),'Разходи за благотворителност и '!$D:$D)+SUMIF('Изброени разходи'!$J:$J,\"=\"&($A8&TEXT(N$4,\"ммм-гг\")),'Изброени разходи'!$E:$E)","v":0},{"$f":"SUM(C8:N8)","v":0}]
[]
[3000,"Принтери",{"$f":"SUMIF('Разходи за благотворителност и '!$L:$L,\"=\"&($A10&TEXT(C$4,\"ммм-гг\")),'Разходи за благотворителност и '!$D:$D)+SUMIF('Изброени разходи'!$J:$J,\"=\"&($A10&TEXT(C$4,\"ммм-гг\")),'Изброени разходи'!$E:$E)","v":0},{"$f":"SUMIF('Разходи за благотворителност и '!$L:$L,\"=\"&($A10&TEXT(D$4,\"ммм-гг\")),'Разходи за благотворителност и '!$D:$D)+SUMIF('Изброени разходи'!$J:$J,\"=\"&($A10&TEXT(D$4,\"ммм-гг\")),'Изброени разходи'!$E:$E)","v":0},{"$f":"SUMIF('Разходи за благотворителност и '!$L:$L,\"=\"&($A10&TEXT(E$4,\"ммм-гг\")),'Разходи за благотворителност и '!$D:$D)+SUMIF('Изброени разходи'!$J:$J,\"=\"&($A10&TEXT(E$4,\"ммм-гг\")),'Изброени разходи'!$E:$E)","v":0},{"$f":"SUMIF('Разходи за благотворителност и '!$L:$L,\"=\"&($A10&TEXT(F$4,\"ммм-гг\")),'Разходи за благотворителност и '!$D:$D)+SUMIF('Изброени разходи'!$J:$J,\"=\"&($A10&TEXT(F$4,\"ммм-гг\")),'Изброени разходи'!$E:$E)","v":0},{"$f":"SUMIF('Разходи за благотворителност и '!$L:$L,\"=\"&($A10&TEXT(G$4,\"ммм-гг\")),'Разходи за благотворителност и '!$D:$D)+SUMIF('Изброени разходи'!$J:$J,\"=\"&($A10&TEXT(G$4,\"ммм-гг\")),'Изброени разходи'!$E:$E)","v":0},{"$f":"SUMIF('Разходи за благотворителност и '!$L:$L,\"=\"&($A10&TEXT(H$4,\"ммм-гг\")),'Разходи за благотворителност и '!$D:$D)+SUMIF('Изброени разходи'!$J:$J,\"=\"&($A10&TEXT(H$4,\"ммм-гг\")),'Изброени разходи'!$E:$E)","v":0},{"$f":"SUMIF('Разходи за благотворителност и '!$L:$L,\"=\"&($A10&TEXT(I$4,\"ммм-гг\")),'Разходи за благотворителност и '!$D:$D)+SUMIF('Изброени разходи'!$J:$J,\"=\"&($A10&TEXT(I$4,\"ммм-гг\")),'Изброени разходи'!$E:$E)","v":0},{"$f":"SUMIF('Разходи за благотворителност и '!$L:$L,\"=\"&($A10&TEXT(J$4,\"ммм-гг\")),'Разходи за благотворителност и '!$D:$D)+SUMIF('Изброени разходи'!$J:$J,\"=\"&($A10&TEXT(J$4,\"ммм-гг\")),'Изброени разходи'!$E:$E)","v":0},{"$f":"SUMIF('Разходи за благотворителност и '!$L:$L,\"=\"&($A10&TEXT(K$4,\"ммм-гг\")),'Разходи за благотворителност и '!$D:$D)+SUMIF('Изброени разходи'!$J:$J,\"=\"&($A10&TEXT(K$4,\"ммм-гг\")),'Изброени разходи'!$E:$E)","v":0},{"$f":"SUMIF('Разходи за благотворителност и '!$L:$L,\"=\"&($A10&TEXT(L$4,\"ммм-гг\")),'Разходи за благотворителност и '!$D:$D)+SUMIF('Изброени разходи'!$J:$J,\"=\"&($A10&TEXT(L$4,\"ммм-гг\")),'Изброени разходи'!$E:$E)","v":0},{"$f":"SUMIF('Разходи за благотворителност и '!$L:$L,\"=\"&($A10&TEXT(M$4,\"ммм-гг\")),'Разходи за благотворителност и '!$D:$D)+SUMIF('Изброени разходи'!$J:$J,\"=\"&($A10&TEXT(M$4,\"ммм-гг\")),'Изброени разходи'!$E:$E)","v":0},{"$f":"SUMIF('Разходи за благотворителност и '!$L:$L,\"=\"&($A10&TEXT(N$4,\"ммм-гг\")),'Разходи за благотворителност и '!$D:$D)+SUMIF('Изброени разходи'!$J:$J,\"=\"&($A10&TEXT(N$4,\"ммм-гг\")),'Изброени разходи'!$E:$E)","v":0},{"$f":"SUM(C10:N10)","v":0}]
[]
[4000,"Разходи по сървъри",{"$f":"SUMIF('Разходи за благотворителност и '!$L:$L,\"=\"&($A12&TEXT(C$4,\"ммм-гг\")),'Разходи за благотворителност и '!$D:$D)+SUMIF('Изброени разходи'!$J:$J,\"=\"&($A12&TEXT(C$4,\"ммм-гг\")),'Изброени разходи'!$E:$E)","v":0},{"$f":"SUMIF('Разходи за благотворителност и '!$L:$L,\"=\"&($A12&TEXT(D$4,\"ммм-гг\")),'Разходи за благотворителност и '!$D:$D)+SUMIF('Изброени разходи'!$J:$J,\"=\"&($A12&TEXT(D$4,\"ммм-гг\")),'Изброени разходи'!$E:$E)","v":0},{"$f":"SUMIF('Разходи за благотворителност и '!$L:$L,\"=\"&($A12&TEXT(E$4,\"ммм-гг\")),'Разходи за благотворителност и '!$D:$D)+SUMIF('Изброени разходи'!$J:$J,\"=\"&($A12&TEXT(E$4,\"ммм-гг\")),'Изброени разходи'!$E:$E)","v":0},{"$f":"SUMIF('Разходи за благотворителност и '!$L:$L,\"=\"&($A12&TEXT(F$4,\"ммм-гг\")),'Разходи за благотворителност и '!$D:$D)+SUMIF('Изброени разходи'!$J:$J,\"=\"&($A12&TEXT(F$4,\"ммм-гг\")),'Изброени разходи'!$E:$E)","v":0},{"$f":"SUMIF('Разходи за благотворителност и '!$L:$L,\"=\"&($A12&TEXT(G$4,\"ммм-гг\")),'Разходи за благотворителност и '!$D:$D)+SUMIF('Изброени разходи'!$J:$J,\"=\"&($A12&TEXT(G$4,\"ммм-гг\")),'Изброени разходи'!$E:$E)","v":0},{"$f":"SUMIF('Разходи за благотворителност и '!$L:$L,\"=\"&($A12&TEXT(H$4,\"ммм-гг\")),'Разходи за благотворителност и '!$D:$D)+SUMIF('Изброени разходи'!$J:$J,\"=\"&($A12&TEXT(H$4,\"ммм-гг\")),'Изброени разходи'!$E:$E)","v":0},{"$f":"SUMIF('Разходи за благотворителност и '!$L:$L,\"=\"&($A12&TEXT(I$4,\"ммм-гг\")),'Разходи за благотворителност и '!$D:$D)+SUMIF('Изброени разходи'!$J:$J,\"=\"&($A12&TEXT(I$4,\"ммм-гг\")),'Изброени разходи'!$E:$E)","v":0},{"$f":"SUMIF('Разходи за благотворителност и '!$L:$L,\"=\"&($A12&TEXT(J$4,\"ммм-гг\")),'Разходи за благотворителност и '!$D:$D)+SUMIF('Изброени разходи'!$J:$J,\"=\"&($A12&TEXT(J$4,\"ммм-гг\")),'Изброени разходи'!$E:$E)","v":0},{"$f":"SUMIF('Разходи за благотворителност и '!$L:$L,\"=\"&($A12&TEXT(K$4,\"ммм-гг\")),'Разходи за благотворителност и '!$D:$D)+SUMIF('Изброени разходи'!$J:$J,\"=\"&($A12&TEXT(K$4,\"ммм-гг\")),'Изброени разходи'!$E:$E)","v":0},{"$f":"SUMIF('Разходи за благотворителност и '!$L:$L,\"=\"&($A12&TEXT(L$4,\"ммм-гг\")),'Разходи за благотворителност и '!$D:$D)+SUMIF('Изброени разходи'!$J:$J,\"=\"&($A12&TEXT(L$4,\"ммм-гг\")),'Изброени разходи'!$E:$E)","v":0},{"$f":"SUMIF('Разходи за благотворителност и '!$L:$L,\"=\"&($A12&TEXT(M$4,\"ммм-гг\")),'Разходи за благотворителност и '!$D:$D)+SUMIF('Изброени разходи'!$J:$J,\"=\"&($A12&TEXT(M$4,\"ммм-гг\")),'Изброени разходи'!$E:$E)","v":0},{"$f":"SUMIF('Разходи за благотворителност и '!$L:$L,\"=\"&($A12&TEXT(N$4,\"ммм-гг\")),'Разходи за благотворителност и '!$D:$D)+SUMIF('Изброени разходи'!$J:$J,\"=\"&($A12&TEXT(N$4,\"ммм-гг\")),'Изброени разходи'!$E:$E)","v":0},{"$f":"SUM(C12:N12)","v":0}]
[]
[5000,"Материали",{"$f":"SUMIF('Разходи за благотворителност и '!$L:$L,\"=\"&($A14&TEXT(C$4,\"ммм-гг\")),'Разходи за благотворителност и '!$D:$D)+SUMIF('Изброени разходи'!$J:$J,\"=\"&($A14&TEXT(C$4,\"ммм-гг\")),'Изброени разходи'!$E:$E)","v":0},{"$f":"SUMIF('Разходи за благотворителност и '!$L:$L,\"=\"&($A14&TEXT(D$4,\"ммм-гг\")),'Разходи за благотворителност и '!$D:$D)+SUMIF('Изброени разходи'!$J:$J,\"=\"&($A14&TEXT(D$4,\"ммм-гг\")),'Изброени разходи'!$E:$E)","v":0},{"$f":"SUMIF('Разходи за благотворителност и '!$L:$L,\"=\"&($A14&TEXT(E$4,\"ммм-гг\")),'Разходи за благотворителност и '!$D:$D)+SUMIF('Изброени разходи'!$J:$J,\"=\"&($A14&TEXT(E$4,\"ммм-гг\")),'Изброени разходи'!$E:$E)","v":0},{"$f":"SUMIF('Разходи за благотворителност и '!$L:$L,\"=\"&($A14&TEXT(F$4,\"ммм-гг\")),'Разходи за благотворителност и '!$D:$D)+SUMIF('Изброени разходи'!$J:$J,\"=\"&($A14&TEXT(F$4,\"ммм-гг\")),'Изброени разходи'!$E:$E)","v":0},{"$f":"SUMIF('Разходи за благотворителност и '!$L:$L,\"=\"&($A14&TEXT(G$4,\"ммм-гг\")),'Разходи за благотворителност и '!$D:$D)+SUMIF('Изброени разходи'!$J:$J,\"=\"&($A14&TEXT(G$4,\"ммм-гг\")),'Изброени разходи'!$E:$E)","v":0},{"$f":"SUMIF('Разходи за благотворителност и '!$L:$L,\"=\"&($A14&TEXT(H$4,\"ммм-гг\")),'Разходи за благотворителност и '!$D:$D)+SUMIF('Изброени разходи'!$J:$J,\"=\"&($A14&TEXT(H$4,\"ммм-гг\")),'Изброени разходи'!$E:$E)","v":0},{"$f":"SUMIF('Разходи за благотворителност и '!$L:$L,\"=\"&($A14&TEXT(I$4,\"ммм-гг\")),'Разходи за благотворителност и '!$D:$D)+SUMIF('Изброени разходи'!$J:$J,\"=\"&($A14&TEXT(I$4,\"ммм-гг\")),'Изброени разходи'!$E:$E)","v":0},{"$f":"SUMIF('Разходи за благотворителност и '!$L:$L,\"=\"&($A14&TEXT(J$4,\"ммм-гг\")),'Разходи за благотворителност и '!$D:$D)+SUMIF('Изброени разходи'!$J:$J,\"=\"&($A14&TEXT(J$4,\"ммм-гг\")),'Изброени разходи'!$E:$E)","v":0},{"$f":"SUMIF('Разходи за благотворителност и '!$L:$L,\"=\"&($A14&TEXT(K$4,\"ммм-гг\")),'Разходи за благотворителност и '!$D:$D)+SUMIF('Изброени разходи'!$J:$J,\"=\"&($A14&TEXT(K$4,\"ммм-гг\")),'Изброени разходи'!$E:$E)","v":0},{"$f":"SUMIF('Разходи за благотворителност и '!$L:$L,\"=\"&($A14&TEXT(L$4,\"ммм-гг\")),'Разходи за благотворителност и '!$D:$D)+SUMIF('Изброени разходи'!$J:$J,\"=\"&($A14&TEXT(L$4,\"ммм-гг\")),'Изброени разходи'!$E:$E)","v":0},{"$f":"SUMIF('Разходи за благотворителност и '!$L:$L,\"=\"&($A14&TEXT(M$4,\"ммм-гг\")),'Разходи за благотворителност и '!$D:$D)+SUMIF('Изброени разходи'!$J:$J,\"=\"&($A14&TEXT(M$4,\"ммм-гг\")),'Изброени разходи'!$E:$E)","v":0},{"$f":"SUMIF('Разходи за благотворителност и '!$L:$L,\"=\"&($A14&TEXT(N$4,\"ммм-гг\")),'Разходи за благотворителност и '!$D:$D)+SUMIF('Изброени разходи'!$J:$J,\"=\"&($A14&TEXT(N$4,\"ммм-гг\")),'Изброени разходи'!$E:$E)","v":0},{"$f":"SUM(C14:N14)","v":0}]
[]
[6000,"Разходи по клиенти",{"$f":"SUMIF('Разходи за благотворителност и '!$L:$L,\"=\"&($A16&TEXT(C$4,\"ммм-гг\")),'Разходи за благотворителност и '!$D:$D)+SUMIF('Изброени разходи'!$J:$J,\"=\"&($A16&TEXT(C$4,\"ммм-гг\")),'Изброени разходи'!$E:$E)","v":0},{"$f":"SUMIF('Разходи за благотворителност и '!$L:$L,\"=\"&($A16&TEXT(D$4,\"ммм-гг\")),'Разходи за благотворителност и '!$D:$D)+SUMIF('Изброени разходи'!$J:$J,\"=\"&($A16&TEXT(D$4,\"ммм-гг\")),'Изброени разходи'!$E:$E)","v":0},{"$f":"SUMIF('Разходи за благотворителност и '!$L:$L,\"=\"&($A16&TEXT(E$4,\"ммм-гг\")),'Разходи за благотворителност и '!$D:$D)+SUMIF('Изброени разходи'!$J:$J,\"=\"&($A16&TEXT(E$4,\"ммм-гг\")),'Изброени разходи'!$E:$E)","v":0},{"$f":"SUMIF('Разходи за благотворителност и '!$L:$L,\"=\"&($A16&TEXT(F$4,\"ммм-гг\")),'Разходи за благотворителност и '!$D:$D)+SUMIF('Изброени разходи'!$J:$J,\"=\"&($A16&TEXT(F$4,\"ммм-гг\")),'Изброени разходи'!$E:$E)","v":0},{"$f":"SUMIF('Разходи за благотворителност и '!$L:$L,\"=\"&($A16&TEXT(G$4,\"ммм-гг\")),'Разходи за благотворителност и '!$D:$D)+SUMIF('Изброени разходи'!$J:$J,\"=\"&($A16&TEXT(G$4,\"ммм-гг\")),'Изброени разходи'!$E:$E)","v":0},{"$f":"SUMIF('Разходи за благотворителност и '!$L:$L,\"=\"&($A16&TEXT(H$4,\"ммм-гг\")),'Разходи за благотворителност и '!$D:$D)+SUMIF('Изброени разходи'!$J:$J,\"=\"&($A16&TEXT(H$4,\"ммм-гг\")),'Изброени разходи'!$E:$E)","v":0},{"$f":"SUMIF('Разходи за благотворителност и '!$L:$L,\"=\"&($A16&TEXT(I$4,\"ммм-гг\")),'Разходи за благотворителност и '!$D:$D)+SUMIF('Изброени разходи'!$J:$J,\"=\"&($A16&TEXT(I$4,\"ммм-гг\")),'Изброени разходи'!$E:$E)","v":0},{"$f":"SUMIF('Разходи за благотворителност и '!$L:$L,\"=\"&($A16&TEXT(J$4,\"ммм-гг\")),'Разходи за благотворителност и '!$D:$D)+SUMIF('Изброени разходи'!$J:$J,\"=\"&($A16&TEXT(J$4,\"ммм-гг\")),'Изброени разходи'!$E:$E)","v":0},{"$f":"SUMIF('Разходи за благотворителност и '!$L:$L,\"=\"&($A16&TEXT(K$4,\"ммм-гг\")),'Разходи за благотворителност и '!$D:$D)+SUMIF('Изброени разходи'!$J:$J,\"=\"&($A16&TEXT(K$4,\"ммм-гг\")),'Изброени разходи'!$E:$E)","v":0},{"$f":"SUMIF('Разходи за благотворителност и '!$L:$L,\"=\"&($A16&TEXT(L$4,\"ммм-гг\")),'Разходи за благотворителност и '!$D:$D)+SUMIF('Изброени разходи'!$J:$J,\"=\"&($A16&TEXT(L$4,\"ммм-гг\")),'Изброени разходи'!$E:$E)","v":0},{"$f":"SUMIF('Разходи за благотворителност и '!$L:$L,\"=\"&($A16&TEXT(M$4,\"ммм-гг\")),'Разходи за благотворителност и '!$D:$D)+SUMIF('Изброени разходи'!$J:$J,\"=\"&($A16&TEXT(M$4,\"ммм-гг\")),'Изброени разходи'!$E:$E)","v":0},{"$f":"SUMIF('Разходи за благотворителност и '!$L:$L,\"=\"&($A16&TEXT(N$4,\"ммм-гг\")),'Разходи за благотворителност и '!$D:$D)+SUMIF('Изброени разходи'!$J:$J,\"=\"&($A16&TEXT(N$4,\"ммм-гг\")),'Изброени разходи'!$E:$E)","v":0},{"$f":"SUM(C16:N16)","v":0}]
[]
[7000,"Компютри",{"$f":"SUMIF('Разходи за благотворителност и '!$L:$L,\"=\"&($A18&TEXT(C$4,\"ммм-гг\")),'Разходи за благотворителност и '!$D:$D)+SUMIF('Изброени разходи'!$J:$J,\"=\"&($A18&TEXT(C$4,\"ммм-гг\")),'Изброени разходи'!$E:$E)","v":{"v":2500,"d":"2,500.00 лв"}},{"$f":"SUMIF('Разходи за благотворителност и '!$L:$L,\"=\"&($A18&TEXT(D$4,\"ммм-гг\")),'Разходи за благотворителност и '!$D:$D)+SUMIF('Изброени разходи'!$J:$J,\"=\"&($A18&TEXT(D$4,\"ммм-гг\")),'Изброени разходи'!$E:$E)","v":{"v":2500,"d":"2,500.00 лв"}},{"$f":"SUMIF('Разходи за благотворителност и '!$L:$L,\"=\"&($A18&TEXT(E$4,\"ммм-гг\")),'Разходи за благотворителност и '!$D:$D)+SUMIF('Изброени разходи'!$J:$J,\"=\"&($A18&TEXT(E$4,\"ммм-гг\")),'Изброени разходи'!$E:$E)","v":{"v":2500,"d":"2,500.00 лв"}},{"$f":"SUMIF('Разходи за благотворителност и '!$L:$L,\"=\"&($A18&TEXT(F$4,\"ммм-гг\")),'Разходи за благотворителност и '!$D:$D)+SUMIF('Изброени разходи'!$J:$J,\"=\"&($A18&TEXT(F$4,\"ммм-гг\")),'Изброени разходи'!$E:$E)","v":{"v":2500,"d":"2,500.00 лв"}},{"$f":"SUMIF('Разходи за благотворителност и '!$L:$L,\"=\"&($A18&TEXT(G$4,\"ммм-гг\")),'Разходи за благотворителност и '!$D:$D)+SUMIF('Изброени разходи'!$J:$J,\"=\"&($A18&TEXT(G$4,\"ммм-гг\")),'Изброени разходи'!$E:$E)","v":{"v":2500,"d":"2,500.00 лв"}},{"$f":"SUMIF('Разходи за благотворителност и '!$L:$L,\"=\"&($A18&TEXT(H$4,\"ммм-гг\")),'Разходи за благотворителност и '!$D:$D)+SUMIF('Изброени разходи'!$J:$J,\"=\"&($A18&TEXT(H$4,\"ммм-гг\")),'Изброени разходи'!$E:$E)","v":{"v":2500,"d":"2,500.00 лв"}},{"$f":"SUMIF('Разходи за благотворителност и '!$L:$L,\"=\"&($A18&TEXT(I$4,\"ммм-гг\")),'Разходи за благотворителност и '!$D:$D)+SUMIF('Изброени разходи'!$J:$J,\"=\"&($A18&TEXT(I$4,\"ммм-гг\")),'Изброени разходи'!$E:$E)","v":{"v":2500,"d":"2,500.00 лв"}},{"$f":"SUMIF('Разходи за благотворителност и '!$L:$L,\"=\"&($A18&TEXT(J$4,\"ммм-гг\")),'Разходи за благотворителност и '!$D:$D)+SUMIF('Изброени разходи'!$J:$J,\"=\"&($A18&TEXT(J$4,\"ммм-гг\")),'Изброени разходи'!$E:$E)","v":{"v":2500,"d":"2,500.00 лв"}},{"$f":"SUMIF('Разходи за благотворителност и '!$L:$L,\"=\"&($A18&TEXT(K$4,\"ммм-гг\")),'Разходи за благотворителност и '!$D:$D)+SUMIF('Изброени разходи'!$J:$J,\"=\"&($A18&TEXT(K$4,\"ммм-гг\")),'Изброени разходи'!$E:$E)","v":{"v":2500,"d":"2,500.00 лв"}},{"$f":"SUMIF('Разходи за благотворителност и '!$L:$L,\"=\"&($A18&TEXT(L$4,\"ммм-гг\")),'Разходи за благотворителност и '!$D:$D)+SUMIF('Изброени разходи'!$J:$J,\"=\"&($A18&TEXT(L$4,\"ммм-гг\")),'Изброени разходи'!$E:$E)","v":{"v":2500,"d":"2,500.00 лв"}},{"$f":"SUMIF('Разходи за благотворителност и '!$L:$L,\"=\"&($A18&TEXT(M$4,\"ммм-гг\")),'Разходи за благотворителност и '!$D:$D)+SUMIF('Изброени разходи'!$J:$J,\"=\"&($A18&TEXT(M$4,\"ммм-гг\")),'Изброени разходи'!$E:$E)","v":{"v":2500,"d":"2,500.00 лв"}},{"$f":"SUMIF('Разходи за благотворителност и '!$L:$L,\"=\"&($A18&TEXT(N$4,\"ммм-гг\")),'Разходи за благотворителност и '!$D:$D)+SUMIF('Изброени разходи'!$J:$J,\"=\"&($A18&TEXT(N$4,\"ммм-гг\")),'Изброени разходи'!$E:$E)","v":{"v":2500,"d":"2,500.00 лв"}},{"$f":"SUM(C18:N18)","v":{"v":30000,"d":"30,000.00 лв"}}]
[]
[8000,"Медицински план",{"$f":"SUMIF('Разходи за благотворителност и '!$L:$L,\"=\"&($A20&TEXT(C$4,\"ммм-гг\")),'Разходи за благотворителност и '!$D:$D)+SUMIF('Изброени разходи'!$J:$J,\"=\"&($A20&TEXT(C$4,\"ммм-гг\")),'Изброени разходи'!$E:$E)","v":0},{"$f":"SUMIF('Разходи за благотворителност и '!$L:$L,\"=\"&($A20&TEXT(D$4,\"ммм-гг\")),'Разходи за благотворителност и '!$D:$D)+SUMIF('Изброени разходи'!$J:$J,\"=\"&($A20&TEXT(D$4,\"ммм-гг\")),'Изброени разходи'!$E:$E)","v":0},{"$f":"SUMIF('Разходи за благотворителност и '!$L:$L,\"=\"&($A20&TEXT(E$4,\"ммм-гг\")),'Разходи за благотворителност и '!$D:$D)+SUMIF('Изброени разходи'!$J:$J,\"=\"&($A20&TEXT(E$4,\"ммм-гг\")),'Изброени разходи'!$E:$E)","v":0},{"$f":"SUMIF('Разходи за благотворителност и '!$L:$L,\"=\"&($A20&TEXT(F$4,\"ммм-гг\")),'Разходи за благотворителност и '!$D:$D)+SUMIF('Изброени разходи'!$J:$J,\"=\"&($A20&TEXT(F$4,\"ммм-гг\")),'Изброени разходи'!$E:$E)","v":0},{"$f":"SUMIF('Разходи за благотворителност и '!$L:$L,\"=\"&($A20&TEXT(G$4,\"ммм-гг\")),'Разходи за благотворителност и '!$D:$D)+SUMIF('Изброени разходи'!$J:$J,\"=\"&($A20&TEXT(G$4,\"ммм-гг\")),'Изброени разходи'!$E:$E)","v":0},{"$f":"SUMIF('Разходи за благотворителност и '!$L:$L,\"=\"&($A20&TEXT(H$4,\"ммм-гг\")),'Разходи за благотворителност и '!$D:$D)+SUMIF('Изброени разходи'!$J:$J,\"=\"&($A20&TEXT(H$4,\"ммм-гг\")),'Изброени разходи'!$E:$E)","v":0},{"$f":"SUMIF('Разходи за благотворителност и '!$L:$L,\"=\"&($A20&TEXT(I$4,\"ммм-гг\")),'Разходи за благотворителност и '!$D:$D)+SUMIF('Изброени разходи'!$J:$J,\"=\"&($A20&TEXT(I$4,\"ммм-гг\")),'Изброени разходи'!$E:$E)","v":0},{"$f":"SUMIF('Разходи за благотворителност и '!$L:$L,\"=\"&($A20&TEXT(J$4,\"ммм-гг\")),'Разходи за благотворителност и '!$D:$D)+SUMIF('Изброени разходи'!$J:$J,\"=\"&($A20&TEXT(J$4,\"ммм-гг\")),'Изброени разходи'!$E:$E)","v":0},{"$f":"SUMIF('Разходи за благотворителност и '!$L:$L,\"=\"&($A20&TEXT(K$4,\"ммм-гг\")),'Разходи за благотворителност и '!$D:$D)+SUMIF('Изброени разходи'!$J:$J,\"=\"&($A20&TEXT(K$4,\"ммм-гг\")),'Изброени разходи'!$E:$E)","v":0},{"$f":"SUMIF('Разходи за благотворителност и '!$L:$L,\"=\"&($A20&TEXT(L$4,\"ммм-гг\")),'Разходи за благотворителност и '!$D:$D)+SUMIF('Изброени разходи'!$J:$J,\"=\"&($A20&TEXT(L$4,\"ммм-гг\")),'Изброени разходи'!$E:$E)","v":0},{"$f":"SUMIF('Разходи за благотворителност и '!$L:$L,\"=\"&($A20&TEXT(M$4,\"ммм-гг\")),'Разходи за благотворителност и '!$D:$D)+SUMIF('Изброени разходи'!$J:$J,\"=\"&($A20&TEXT(M$4,\"ммм-гг\")),'Изброени разходи'!$E:$E)","v":0},{"$f":"SUMIF('Разходи за благотворителност и '!$L:$L,\"=\"&($A20&TEXT(N$4,\"ммм-гг\")),'Разходи за благотворителност и '!$D:$D)+SUMIF('Изброени разходи'!$J:$J,\"=\"&($A20&TEXT(N$4,\"ммм-гг\")),'Изброени разходи'!$E:$E)","v":0},{"$f":"SUM(C20:N20)","v":0}]
[]
[9000,"Строителни разходи",{"$f":"SUMIF('Разходи за благотворителност и '!$L:$L,\"=\"&($A22&TEXT(C$4,\"ммм-гг\")),'Разходи за благотворителност и '!$D:$D)+SUMIF('Изброени разходи'!$J:$J,\"=\"&($A22&TEXT(C$4,\"ммм-гг\")),'Изброени разходи'!$E:$E)","v":0},{"$f":"SUMIF('Разходи за благотворителност и '!$L:$L,\"=\"&($A22&TEXT(D$4,\"ммм-гг\")),'Разходи за благотворителност и '!$D:$D)+SUMIF('Изброени разходи'!$J:$J,\"=\"&($A22&TEXT(D$4,\"ммм-гг\")),'Изброени разходи'!$E:$E)","v":0},{"$f":"SUMIF('Разходи за благотворителност и '!$L:$L,\"=\"&($A22&TEXT(E$4,\"ммм-гг\")),'Разходи за благотворителност и '!$D:$D)+SUMIF('Изброени разходи'!$J:$J,\"=\"&($A22&TEXT(E$4,\"ммм-гг\")),'Изброени разходи'!$E:$E)","v":0},{"$f":"SUMIF('Разходи за благотворителност и '!$L:$L,\"=\"&($A22&TEXT(F$4,\"ммм-гг\")),'Разходи за благотворителност и '!$D:$D)+SUMIF('Изброени разходи'!$J:$J,\"=\"&($A22&TEXT(F$4,\"ммм-гг\")),'Изброени разходи'!$E:$E)","v":0},{"$f":"SUMIF('Разходи за благотворителност и '!$L:$L,\"=\"&($A22&TEXT(G$4,\"ммм-гг\")),'Разходи за благотворителност и '!$D:$D)+SUMIF('Изброени разходи'!$J:$J,\"=\"&($A22&TEXT(G$4,\"ммм-гг\")),'Изброени разходи'!$E:$E)","v":0},{"$f":"SUMIF('Разходи за благотворителност и '!$L:$L,\"=\"&($A22&TEXT(H$4,\"ммм-гг\")),'Разходи за благотворителност и '!$D:$D)+SUMIF('Изброени разходи'!$J:$J,\"=\"&($A22&TEXT(H$4,\"ммм-гг\")),'Изброени разходи'!$E:$E)","v":0},{"$f":"SUMIF('Разходи за благотворителност и '!$L:$L,\"=\"&($A22&TEXT(I$4,\"ммм-гг\")),'Разходи за благотворителност и '!$D:$D)+SUMIF('Изброени разходи'!$J:$J,\"=\"&($A22&TEXT(I$4,\"ммм-гг\")),'Изброени разходи'!$E:$E)","v":0},{"$f":"SUMIF('Разходи за благотворителност и '!$L:$L,\"=\"&($A22&TEXT(J$4,\"ммм-гг\")),'Разходи за благотворителност и '!$D:$D)+SUMIF('Изброени разходи'!$J:$J,\"=\"&($A22&TEXT(J$4,\"ммм-гг\")),'Изброени разходи'!$E:$E)","v":0},{"$f":"SUMIF('Разходи за благотворителност и '!$L:$L,\"=\"&($A22&TEXT(K$4,\"ммм-гг\")),'Разходи за благотворителност и '!$D:$D)+SUMIF('Изброени разходи'!$J:$J,\"=\"&($A22&TEXT(K$4,\"ммм-гг\")),'Изброени разходи'!$E:$E)","v":0},{"$f":"SUMIF('Разходи за благотворителност и '!$L:$L,\"=\"&($A22&TEXT(L$4,\"ммм-гг\")),'Разходи за благотворителност и '!$D:$D)+SUMIF('Изброени разходи'!$J:$J,\"=\"&($A22&TEXT(L$4,\"ммм-гг\")),'Изброени разходи'!$E:$E)","v":0},{"$f":"SUMIF('Разходи за благотворителност и '!$L:$L,\"=\"&($A22&TEXT(M$4,\"ммм-гг\")),'Разходи за благотворителност и '!$D:$D)+SUMIF('Изброени разходи'!$J:$J,\"=\"&($A22&TEXT(M$4,\"ммм-гг\")),'Изброени разходи'!$E:$E)","v":0},{"$f":"SUMIF('Разходи за благотворителност и '!$L:$L,\"=\"&($A22&TEXT(N$4,\"ммм-гг\")),'Разходи за благотворителност и '!$D:$D)+SUMIF('Изброени разходи'!$J:$J,\"=\"&($A22&TEXT(N$4,\"ммм-гг\")),'Изброени разходи'!$E:$E)","v":0},{"$f":"SUM(C22:N22)","v":0}]
[]
[10000,"Маркетинг",{"$f":"SUMIF('Разходи за благотворителност и '!$L:$L,\"=\"&($A24&TEXT(C$4,\"ммм-гг\")),'Разходи за благотворителност и '!$D:$D)+SUMIF('Изброени разходи'!$J:$J,\"=\"&($A24&TEXT(C$4,\"ммм-гг\")),'Изброени разходи'!$E:$E)","v":0},{"$f":"SUMIF('Разходи за благотворителност и '!$L:$L,\"=\"&($A24&TEXT(D$4,\"ммм-гг\")),'Разходи за благотворителност и '!$D:$D)+SUMIF('Изброени разходи'!$J:$J,\"=\"&($A24&TEXT(D$4,\"ммм-гг\")),'Изброени разходи'!$E:$E)","v":0},{"$f":"SUMIF('Разходи за благотворителност и '!$L:$L,\"=\"&($A24&TEXT(E$4,\"ммм-гг\")),'Разходи за благотворителност и '!$D:$D)+SUMIF('Изброени разходи'!$J:$J,\"=\"&($A24&TEXT(E$4,\"ммм-гг\")),'Изброени разходи'!$E:$E)","v":0},{"$f":"SUMIF('Разходи за благотворителност и '!$L:$L,\"=\"&($A24&TEXT(F$4,\"ммм-гг\")),'Разходи за благотворителност и '!$D:$D)+SUMIF('Изброени разходи'!$J:$J,\"=\"&($A24&TEXT(F$4,\"ммм-гг\")),'Изброени разходи'!$E:$E)","v":0},{"$f":"SUMIF('Разходи за благотворителност и '!$L:$L,\"=\"&($A24&TEXT(G$4,\"ммм-гг\")),'Разходи за благотворителност и '!$D:$D)+SUMIF('Изброени разходи'!$J:$J,\"=\"&($A24&TEXT(G$4,\"ммм-гг\")),'Изброени разходи'!$E:$E)","v":0},{"$f":"SUMIF('Разходи за благотворителност и '!$L:$L,\"=\"&($A24&TEXT(H$4,\"ммм-гг\")),'Разходи за благотворителност и '!$D:$D)+SUMIF('Изброени разходи'!$J:$J,\"=\"&($A24&TEXT(H$4,\"ммм-гг\")),'Изброени разходи'!$E:$E)","v":0},{"$f":"SUMIF('Разходи за благотворителност и '!$L:$L,\"=\"&($A24&TEXT(I$4,\"ммм-гг\")),'Разходи за благотворителност и '!$D:$D)+SUMIF('Изброени разходи'!$J:$J,\"=\"&($A24&TEXT(I$4,\"ммм-гг\")),'Изброени разходи'!$E:$E)","v":0},{"$f":"SUMIF('Разходи за благотворителност и '!$L:$L,\"=\"&($A24&TEXT(J$4,\"ммм-гг\")),'Разходи за благотворителност и '!$D:$D)+SUMIF('Изброени разходи'!$J:$J,\"=\"&($A24&TEXT(J$4,\"ммм-гг\")),'Изброени разходи'!$E:$E)","v":0},{"$f":"SUMIF('Разходи за благотворителност и '!$L:$L,\"=\"&($A24&TEXT(K$4,\"ммм-гг\")),'Разходи за благотворителност и '!$D:$D)+SUMIF('Изброени разходи'!$J:$J,\"=\"&($A24&TEXT(K$4,\"ммм-гг\")),'Изброени разходи'!$E:$E)","v":0},{"$f":"SUMIF('Разходи за благотворителност и '!$L:$L,\"=\"&($A24&TEXT(L$4,\"ммм-гг\")),'Разходи за благотворителност и '!$D:$D)+SUMIF('Изброени разходи'!$J:$J,\"=\"&($A24&TEXT(L$4,\"ммм-гг\")),'Изброени разходи'!$E:$E)","v":0},{"$f":"SUMIF('Разходи за благотворителност и '!$L:$L,\"=\"&($A24&TEXT(M$4,\"ммм-гг\")),'Разходи за благотворителност и '!$D:$D)+SUMIF('Изброени разходи'!$J:$J,\"=\"&($A24&TEXT(M$4,\"ммм-гг\")),'Изброени разходи'!$E:$E)","v":0},{"$f":"SUMIF('Разходи за благотворителност и '!$L:$L,\"=\"&($A24&TEXT(N$4,\"ммм-гг\")),'Разходи за благотворителност и '!$D:$D)+SUMIF('Изброени разходи'!$J:$J,\"=\"&($A24&TEXT(N$4,\"ммм-гг\")),'Изброени разходи'!$E:$E)","v":0},{"$f":"SUM(C24:N24)","v":0}]
[]
[11000,"Разходи за благотворителност",{"$f":"SUMIF('Разходи за благотворителност и '!$L:$L,\"=\"&($A26&TEXT(C$4,\"ммм-гг\")),'Разходи за благотворителност и '!$D:$D)+SUMIF('Изброени разходи'!$J:$J,\"=\"&($A26&TEXT(C$4,\"ммм-гг\")),'Изброени разходи'!$E:$E)","v":{"v":2500,"d":"2,500.00 лв"}},{"$f":"SUMIF('Разходи за благотворителност и '!$L:$L,\"=\"&($A26&TEXT(D$4,\"ммм-гг\")),'Разходи за благотворителност и '!$D:$D)+SUMIF('Изброени разходи'!$J:$J,\"=\"&($A26&TEXT(D$4,\"ммм-гг\")),'Изброени разходи'!$E:$E)","v":{"v":2500,"d":"2,500.00 лв"}},{"$f":"SUMIF('Разходи за благотворителност и '!$L:$L,\"=\"&($A26&TEXT(E$4,\"ммм-гг\")),'Разходи за благотворителност и '!$D:$D)+SUMIF('Изброени разходи'!$J:$J,\"=\"&($A26&TEXT(E$4,\"ммм-гг\")),'Изброени разходи'!$E:$E)","v":{"v":2500,"d":"2,500.00 лв"}},{"$f":"SUMIF('Разходи за благотворителност и '!$L:$L,\"=\"&($A26&TEXT(F$4,\"ммм-гг\")),'Разходи за благотворителност и '!$D:$D)+SUMIF('Изброени разходи'!$J:$J,\"=\"&($A26&TEXT(F$4,\"ммм-гг\")),'Изброени разходи'!$E:$E)","v":{"v":2500,"d":"2,500.00 лв"}},{"$f":"SUMIF('Разходи за благотворителност и '!$L:$L,\"=\"&($A26&TEXT(G$4,\"ммм-гг\")),'Разходи за благотворителност и '!$D:$D)+SUMIF('Изброени разходи'!$J:$J,\"=\"&($A26&TEXT(G$4,\"ммм-гг\")),'Изброени разходи'!$E:$E)","v":{"v":2500,"d":"2,500.00 лв"}},{"$f":"SUMIF('Разходи за благотворителност и '!$L:$L,\"=\"&($A26&TEXT(H$4,\"ммм-гг\")),'Разходи за благотворителност и '!$D:$D)+SUMIF('Изброени разходи'!$J:$J,\"=\"&($A26&TEXT(H$4,\"ммм-гг\")),'Изброени разходи'!$E:$E)","v":{"v":2500,"d":"2,500.00 лв"}},{"$f":"SUMIF('Разходи за благотворителност и '!$L:$L,\"=\"&($A26&TEXT(I$4,\"ммм-гг\")),'Разходи за благотворителност и '!$D:$D)+SUMIF('Изброени разходи'!$J:$J,\"=\"&($A26&TEXT(I$4,\"ммм-гг\")),'Изброени разходи'!$E:$E)","v":{"v":2500,"d":"2,500.00 лв"}},{"$f":"SUMIF('Разходи за благотворителност и '!$L:$L,\"=\"&($A26&TEXT(J$4,\"ммм-гг\")),'Разходи за благотворителност и '!$D:$D)+SUMIF('Изброени разходи'!$J:$J,\"=\"&($A26&TEXT(J$4,\"ммм-гг\")),'Изброени разходи'!$E:$E)","v":{"v":2500,"d":"2,500.00 лв"}},{"$f":"SUMIF('Разходи за благотворителност и '!$L:$L,\"=\"&($A26&TEXT(K$4,\"ммм-гг\")),'Разходи за благотворителност и '!$D:$D)+SUMIF('Изброени разходи'!$J:$J,\"=\"&($A26&TEXT(K$4,\"ммм-гг\")),'Изброени разходи'!$E:$E)","v":{"v":2500,"d":"2,500.00 лв"}},{"$f":"SUMIF('Разходи за благотворителност и '!$L:$L,\"=\"&($A26&TEXT(L$4,\"ммм-гг\")),'Разходи за благотворителност и '!$D:$D)+SUMIF('Изброени разходи'!$J:$J,\"=\"&($A26&TEXT(L$4,\"ммм-гг\")),'Изброени разходи'!$E:$E)","v":{"v":2500,"d":"2,500.00 лв"}},{"$f":"SUMIF('Разходи за благотворителност и '!$L:$L,\"=\"&($A26&TEXT(M$4,\"ммм-гг\")),'Разходи за благотворителност и '!$D:$D)+SUMIF('Изброени разходи'!$J:$J,\"=\"&($A26&TEXT(M$4,\"ммм-гг\")),'Изброени разходи'!$E:$E)","v":{"v":2500,"d":"2,500.00 лв"}},{"$f":"SUMIF('Разходи за благотворителност и '!$L:$L,\"=\"&($A26&TEXT(N$4,\"ммм-гг\")),'Разходи за благотворителност и '!$D:$D)+SUMIF('Изброени разходи'!$J:$J,\"=\"&($A26&TEXT(N$4,\"ммм-гг\")),'Изброени разходи'!$E:$E)","v":{"v":2500,"d":"2,500.00 лв"}},{"$f":"SUM(C26:N26)","v":{"v":30000,"d":"30,000.00 лв"}}]
[]
[12000,"Спонсорство",{"$f":"SUMIF('Разходи за благотворителност и '!$L:$L,\"=\"&($A28&TEXT(C$4,\"ммм-гг\")),'Разходи за благотворителност и '!$D:$D)+SUMIF('Изброени разходи'!$J:$J,\"=\"&($A28&TEXT(C$4,\"ммм-гг\")),'Изброени разходи'!$E:$E)","v":{"v":1000,"d":"1,000.00 лв"}},{"$f":"SUMIF('Разходи за благотворителност и '!$L:$L,\"=\"&($A28&TEXT(D$4,\"ммм-гг\")),'Разходи за благотворителност и '!$D:$D)+SUMIF('Изброени разходи'!$J:$J,\"=\"&($A28&TEXT(D$4,\"ммм-гг\")),'Изброени разходи'!$E:$E)","v":{"v":1000,"d":"1,000.00 лв"}},{"$f":"SUMIF('Разходи за благотворителност и '!$L:$L,\"=\"&($A28&TEXT(E$4,\"ммм-гг\")),'Разходи за благотворителност и '!$D:$D)+SUMIF('Изброени разходи'!$J:$J,\"=\"&($A28&TEXT(E$4,\"ммм-гг\")),'Изброени разходи'!$E:$E)","v":{"v":1000,"d":"1,000.00 лв"}},{"$f":"SUMIF('Разходи за благотворителност и '!$L:$L,\"=\"&($A28&TEXT(F$4,\"ммм-гг\")),'Разходи за благотворителност и '!$D:$D)+SUMIF('Изброени разходи'!$J:$J,\"=\"&($A28&TEXT(F$4,\"ммм-гг\")),'Изброени разходи'!$E:$E)","v":{"v":1000,"d":"1,000.00 лв"}},{"$f":"SUMIF('Разходи за благотворителност и '!$L:$L,\"=\"&($A28&TEXT(G$4,\"ммм-гг\")),'Разходи за благотворителност и '!$D:$D)+SUMIF('Изброени разходи'!$J:$J,\"=\"&($A28&TEXT(G$4,\"ммм-гг\")),'Изброени разходи'!$E:$E)","v":{"v":1000,"d":"1,000.00 лв"}},{"$f":"SUMIF('Разходи за благотворителност и '!$L:$L,\"=\"&($A28&TEXT(H$4,\"ммм-гг\")),'Разходи за благотворителност и '!$D:$D)+SUMIF('Изброени разходи'!$J:$J,\"=\"&($A28&TEXT(H$4,\"ммм-гг\")),'Изброени разходи'!$E:$E)","v":{"v":1000,"d":"1,000.00 лв"}},{"$f":"SUMIF('Разходи за благотворителност и '!$L:$L,\"=\"&($A28&TEXT(I$4,\"ммм-гг\")),'Разходи за благотворителност и '!$D:$D)+SUMIF('Изброени разходи'!$J:$J,\"=\"&($A28&TEXT(I$4,\"ммм-гг\")),'Изброени разходи'!$E:$E)","v":{"v":1000,"d":"1,000.00 лв"}},{"$f":"SUMIF('Разходи за благотворителност и '!$L:$L,\"=\"&($A28&TEXT(J$4,\"ммм-гг\")),'Разходи за благотворителност и '!$D:$D)+SUMIF('Изброени разходи'!$J:$J,\"=\"&($A28&TEXT(J$4,\"ммм-гг\")),'Изброени разходи'!$E:$E)","v":{"v":1000,"d":"1,000.00 лв"}},{"$f":"SUMIF('Разходи за благотворителност и '!$L:$L,\"=\"&($A28&TEXT(K$4,\"ммм-гг\")),'Разходи за благотворителност и '!$D:$D)+SUMIF('Изброени разходи'!$J:$J,\"=\"&($A28&TEXT(K$4,\"ммм-гг\")),'Изброени разходи'!$E:$E)","v":{"v":1000,"d":"1,000.00 лв"}},{"$f":"SUMIF('Разходи за благотворителност и '!$L:$L,\"=\"&($A28&TEXT(L$4,\"ммм-гг\")),'Разходи за благотворителност и '!$D:$D)+SUMIF('Изброени разходи'!$J:$J,\"=\"&($A28&TEXT(L$4,\"ммм-гг\")),'Изброени разходи'!$E:$E)","v":{"v":1000,"d":"1,000.00 лв"}},{"$f":"SUMIF('Разходи за благотворителност и '!$L:$L,\"=\"&($A28&TEXT(M$4,\"ммм-гг\")),'Разходи за благотворителност и '!$D:$D)+SUMIF('Изброени разходи'!$J:$J,\"=\"&($A28&TEXT(M$4,\"ммм-гг\")),'Изброени разходи'!$E:$E)","v":{"v":1000,"d":"1,000.00 лв"}},{"$f":"SUMIF('Разходи за благотворителност и '!$L:$L,\"=\"&($A28&TEXT(N$4,\"ммм-гг\")),'Разходи за благотворителност и '!$D:$D)+SUMIF('Изброени разходи'!$J:$J,\"=\"&($A28&TEXT(N$4,\"ммм-гг\")),'Изброени разходи'!$E:$E)","v":{"v":1000,"d":"1,000.00 лв"}},{"$f":"SUM(C28:N28)","v":{"v":12000,"d":"12,000.00 лв"}}]
[]
[null,"Всичко",{"$f":"SUM(C6:C28)","v":{"v":6750.75,"d":"6,750.75 лв"}},{"v":6750.75,"d":"6,750.75 лв"},{"v":6750.75,"d":"6,750.75 лв"},{"v":6750.75,"d":"6,750.75 лв"},{"v":6750.75,"d":"6,750.75 лв"},{"v":6750.75,"d":"6,750.75 лв"},{"v":6750.75,"d":"6,750.75 лв"},{"v":6750.75,"d":"6,750.75 лв"},{"v":6750.75,"d":"6,750.75 лв"},{"v":6750.75,"d":"6,750.75 лв"},{"v":6750.75,"d":"6,750.75 лв"},{"v":6750.75,"d":"6,750.75 лв"},{"v":81009,"d":"81,009.00 лв"}]

{"sheet":"Изброени разходи","index":2,"n_rows":103,"n_cols":10,"rows_kept":103}
["Код в сч. книга","Дата на фактурата","Фактура #","Заявено от"," Сума ","Платец","Предназначение","Начин на разпространение","Дата на файла","Ключово поле"]
[1000,"2005-01-01",100,"Минко Минков",{"v":750.75,"d":"750.75 лв"},"Consolidated Messenger ","Програма за поща","\"Поща\"","2005-01-04",{"$f":"A2&TEXT(B2,\"ммм-гг\")","v":"1000ммм-гг"}]
[7000,"2005-01-15",101,"Андрей Лазаров",{"v":2500,"d":"2,500.00 лв"},"A. Datum Corporation ","2 настолни компютъра","Кредит","2005-01-20","7000ммм-гг"]
[{"$nulls":9},"ммм-гг"]
[{"$nulls":9},"ммм-гг"]
[{"$nulls":9},"ммм-гг"]
[{"$nulls":9},"ммм-гг"]
[{"$nulls":9},"ммм-гг"]
[{"$nulls":9},"ммм-гг"]
[{"$nulls":9},"ммм-гг"]
[{"$nulls":9},"ммм-гг"]
[{"$nulls":9},"ммм-гг"]
[{"$nulls":9},"ммм-гг"]
[{"$nulls":9},"ммм-гг"]
[{"$nulls":9},"ммм-гг"]
[{"$nulls":9},"ммм-гг"]
[{"$nulls":9},"ммм-гг"]
[{"$nulls":9},"ммм-гг"]
[{"$nulls":9},"ммм-гг"]
[{"$nulls":9},"ммм-гг"]
[{"$nulls":9},"ммм-гг"]
[{"$nulls":9},"ммм-гг"]
[{"$nulls":9},"ммм-гг"]
[{"$nulls":9},"ммм-гг"]
[{"$nulls":9},"ммм-гг"]
[{"$nulls":9},"ммм-гг"]
[{"$nulls":9},"ммм-гг"]
[{"$nulls":9},"ммм-гг"]
[{"$nulls":9},"ммм-гг"]
[{"$nulls":9},"ммм-гг"]
[{"$nulls":9},"ммм-гг"]
[{"$nulls":9},"ммм-гг"]
[{"$nulls":9},"ммм-гг"]
[{"$nulls":9},{"$f":"A34&TEXT(B34,\"ммм-гг\")","v":"ммм-гг"}]
[{"$nulls":9},"ммм-гг"]
[{"$nulls":9},"ммм-гг"]
[{"$nulls":9},"ммм-гг"]
[{"$nulls":9},"ммм-гг"]
[{"$nulls":9},"ммм-гг"]
[{"$nulls":9},"ммм-гг"]
[{"$nulls":9},"ммм-гг"]
[{"$nulls":9},"ммм-гг"]
[{"$nulls":9},"ммм-гг"]
[{"$nulls":9},"ммм-гг"]
[{"$nulls":9},"ммм-гг"]
[{"$nulls":9},"ммм-гг"]
[{"$nulls":9},"ммм-гг"]
[{"$nulls":9},"ммм-гг"]
[{"$nulls":9},"ммм-гг"]
[{"$nulls":9},"ммм-гг"]
[{"$nulls":9},"ммм-гг"]
[{"$nulls":9},"ммм-гг"]
[{"$nulls":9},"ммм-гг"]
[{"$nulls":9},"ммм-гг"]
[{"$nulls":9},"ммм-гг"]
[{"$nulls":9},"ммм-гг"]
[{"$nulls":9},"ммм-гг"]
[{"$nulls":9},"ммм-гг"]
[{"$nulls":9},"ммм-гг"]
[{"$nulls":9},"ммм-гг"]
[{"$nulls":9},"ммм-гг"]
[{"$nulls":9},"ммм-гг"]
[{"$nulls":9},"ммм-гг"]
[{"$nulls":9},"ммм-гг"]
[{"$nulls":9},"ммм-гг"]
[{"$nulls":9},{"$f":"A66&TEXT(B66,\"ммм-гг\")","v":"ммм-гг"}]
[{"$nulls":9},"ммм-гг"]
[{"$nulls":9},"ммм-гг"]
[{"$nulls":9},"ммм-гг"]
[{"$nulls":9},"ммм-гг"]
[{"$nulls":9},"ммм-гг"]
[{"$nulls":9},"ммм-гг"]
[{"$nulls":9},"ммм-гг"]
[{"$nulls":9},"ммм-гг"]
[{"$nulls":9},"ммм-гг"]
[{"$nulls":9},"ммм-гг"]
[{"$nulls":9},"ммм-гг"]
[{"$nulls":9},"ммм-гг"]
[{"$nulls":9},"ммм-гг"]
[{"$nulls":9},"ммм-гг"]
[{"$nulls":9},"ммм-гг"]
[{"$nulls":9},"ммм-гг"]
[{"$nulls":9},"ммм-гг"]
[{"$nulls":9},"ммм-гг"]
[{"$nulls":9},"ммм-гг"]
[{"$nulls":9},"ммм-гг"]
[{"$nulls":9},"ммм-гг"]
[{"$nulls":9},"ммм-гг"]
[{"$nulls":9},"ммм-гг"]
[{"$nulls":9},"ммм-гг"]
[{"$nulls":9},"ммм-гг"]
[{"$nulls":9},"ммм-гг"]
[{"$nulls":9},"ммм-гг"]
[{"$nulls":9},"ммм-гг"]
[{"$nulls":9},"ммм-гг"]
[{"$nulls":9},"ммм-гг"]
[{"$nulls":9},"ммм-гг"]
[{"$nulls":9},{"$f":"A98&TEXT(B98,\"ммм-гг\")","v":"ммм-гг"}]
[{"$nulls":9},"ммм-гг"]
[{"$nulls":9},"ммм-гг"]
[{"$nulls":9},"ммм-гг"]
[{"$nulls":9},"ммм-гг"]
[{"$nulls":9},"ммм-гг"]

{"sheet":"Разходи за благотворителност и ","index":3,"n_rows":109,"n_cols":12,"rows_kept":109}
["Код в сч. книга","Начало на заявка за чек","Заявено от"," Сума "," Сума за предишна година ","Платец","Използвано за","Проверено от","Категория","Начин на разпространение","Дата на файла","Ключово поле"]
[12000,"2005-01-20","Таня Манева",{"v":1000,"d":"1,000.00 лв"},0,"Училище за изящни изкуства ","Стипендии","Ким Ралс","Изкуства","Чек","2005-01-30",{"$f":"A2&TEXT(B2,\"ммм-гг\")","v":"12000ммм-гг"}]
[11000,"2005-02-15","Таня Манева",{"v":2500,"d":"2,500.00 лв"},0,"Играчки ","Общност","Антония Петрова","Общност","Чек","2005-03-01","11000ммм-гг"]
[{"$nulls":11},"ммм-гг"]
[{"$nulls":11},"ммм-гг"]
[{"$nulls":11},"ммм-гг"]
[{"$nulls":11},"ммм-гг"]
[{"$nulls":11},"ммм-гг"]
[{"$nulls":11},"ммм-гг"]
[{"$nulls":11},"ммм-гг"]
[{"$nulls":11},"ммм-гг"]
[{"$nulls":11},"ммм-гг"]
[{"$nulls":11},"ммм-гг"]
[{"$nulls":11},"ммм-гг"]
[{"$nulls":11},"ммм-гг"]
[{"$nulls":11},"ммм-гг"]
[{"$nulls":11},"ммм-гг"]
[{"$nulls":11},"ммм-гг"]
[{"$nulls":11},"ммм-гг"]
[{"$nulls":11},"ммм-гг"]
[{"$nulls":11},"ммм-гг"]
[{"$nulls":11},"ммм-гг"]
[{"$nulls":11},"ммм-гг"]
[{"$nulls":11},"ммм-гг"]
[{"$nulls":11},"ммм-гг"]
[{"$nulls":11},"ммм-гг"]
[{"$nulls":11},"ммм-гг"]
[{"$nulls":11},"ммм-гг"]
[{"$nulls":11},"ммм-гг"]
[{"$nulls":11},"ммм-гг"]
[{"$nulls":11},"ммм-гг"]
[{"$nulls":11},"ммм-гг"]
[{"$nulls":11},"ммм-гг"]
[{"$nulls":11},{"$f":"A34&TEXT(B34,\"ммм-гг\")","v":"ммм-гг"}]
[{"$nulls":11},"ммм-гг"]
[{"$nulls":11},"ммм-гг"]
[{"$nulls":11},"ммм-гг"]
[{"$nulls":11},"ммм-гг"]
[{"$nulls":11},"ммм-гг"]
[{"$nulls":11},"ммм-гг"]
[{"$nulls":11},"ммм-гг"]
[{"$nulls":11},"ммм-гг"]
[{"$nulls":11},"ммм-гг"]
[{"$nulls":11},"ммм-гг"]
[{"$nulls":11},"ммм-гг"]
[{"$nulls":11},"ммм-гг"]
[{"$nulls":11},"ммм-гг"]
[{"$nulls":11},"ммм-гг"]
[{"$nulls":11},"ммм-гг"]
[{"$nulls":11},"ммм-гг"]
[{"$nulls":11},"ммм-гг"]
[{"$nulls":11},"ммм-гг"]
[{"$nulls":11},"ммм-гг"]
[{"$nulls":11},"ммм-гг"]
[{"$nulls":11},"ммм-гг"]
[{"$nulls":11},"ммм-гг"]
[{"$nulls":11},"ммм-гг"]
[{"$nulls":11},"ммм-гг"]
[{"$nulls":11},"ммм-гг"]
[{"$nulls":11},"ммм-гг"]
[{"$nulls":11},"ммм-гг"]
[{"$nulls":11},"ммм-гг"]
[{"$nulls":11},"ммм-гг"]
[{"$nulls":11},"ммм-гг"]
[{"$nulls":11},"ммм-гг"]
[{"$nulls":11},{"$f":"A66&TEXT(B66,\"ммм-гг\")","v":"ммм-гг"}]
[{"$nulls":11},"ммм-гг"]
[{"$nulls":11},"ммм-гг"]
[{"$nulls":11},"ммм-гг"]
[{"$nulls":11},"ммм-гг"]
[{"$nulls":11},"ммм-гг"]
[{"$nulls":11},"ммм-гг"]
[{"$nulls":11},"ммм-гг"]
[{"$nulls":11},"ммм-гг"]
[{"$nulls":11},"ммм-гг"]
[{"$nulls":11},"ммм-гг"]
[{"$nulls":11},"ммм-гг"]
[{"$nulls":11},"ммм-гг"]
[{"$nulls":11},"ммм-гг"]
[{"$nulls":11},"ммм-гг"]
[{"$nulls":11},"ммм-гг"]
[{"$nulls":11},"ммм-гг"]
[{"$nulls":11},"ммм-гг"]
[{"$nulls":11},"ммм-гг"]
[{"$nulls":11},"ммм-гг"]
[{"$nulls":11},"ммм-гг"]
[{"$nulls":11},"ммм-гг"]
[{"$nulls":11},"ммм-гг"]
[{"$nulls":11},"ммм-гг"]
[{"$nulls":11},"ммм-гг"]
[{"$nulls":11},"ммм-гг"]
[{"$nulls":11},"ммм-гг"]
[{"$nulls":11},"ммм-гг"]
[{"$nulls":11},"ммм-гг"]
[{"$nulls":11},"ммм-гг"]
[{"$nulls":11},"ммм-гг"]
[{"$nulls":11},"ммм-гг"]
[{"$nulls":11},{"$f":"A98&TEXT(B98,\"ммм-гг\")","v":"ммм-гг"}]
[{"$nulls":11},"ммм-гг"]
[{"$nulls":11},"ммм-гг"]
[{"$nulls":11},"ммм-гг"]
[{"$nulls":11},"ммм-гг"]
[{"$nulls":11},"ммм-гг"]
[{"$nulls":11},"ммм-гг"]
[{"$nulls":11},"ммм-гг"]
[{"$nulls":11},"ммм-гг"]
[{"$nulls":11},"ммм-гг"]
[{"$nulls":11},"ммм-гг"]
[{"$nulls":11},"ммм-гг"]